Cogmind - Beta 11.1 @@@ ROGUE MODE // 2022.05.29 @ 16:19:34 Player: theq629 Result: Self-destructed Performance ------------- Evolutions (2) 1000 Regions Visited (4) 800 Robots Destroyed (40) 200 Value Destroyed (1081) 1081 Prototype IDs (0) 0 Alien Tech Used (0) 0 Bonus (0) 0 TOTAL SCORE: 3081 Bonus ------- None Cogmind --------- Core Integrity 383/550 Matter 300/300 Energy 459/480 System Corruption 0% Temperature Critical (563) Movement Rolling (125) Ox3 Location -8/Materials Parts ------- > --- POWER (2) -------- Improved Deuterium Engine Improved Deuterium Engine > --- PROPULSION (3) --- Light Treads Wheel > --- UTILITY (3) ------ Small Storage Unit Terrain Scan Processor Light Armor Plating > --- WEAPON (3) ------- Beam Rifle Particle Gun Heavy Laser > --- INVENTORY (8) ---- Ion Engine Ion Engine Ion Engine Improved Ion Engine Small Laser Small Laser Grenade Launcher Mining Laser Peak State ------------ > --- POWER ------------ Improved Deuterium Engine Improved Deuterium Engine > --- PROPULSION ------- Light Treads Wheel Wheel > --- UTILITY ---------- Small Storage Unit Terrain Scan Processor Light Armor Plating > --- WEAPON ----------- Beam Rifle Particle Gun Heavy Laser > --- INVENTORY -------- Ion Engine Ion Engine Ion Engine Improved Ion Engine Small Laser Small Laser Grenade Launcher Mining Laser [Rating: 23] Favorites ----------- Power Ion Engine Engine Ion Engine Propulsion Wheel Treads Light Treads Wheel Wheel Utility Small Storage Unit Device Improved Terrain Scanner Storage Small Storage Unit Processor Terrain Scan Processor Protection Light Armor Plating Weapon Small Laser Energy Gun Small Laser Ballistic Gun Light Assault Rifle Launcher Grenade Launcher Build | -11 -10 -9 -9 -8 ------- Run | Scr Mat Mat Sto Mat Slots Evolved 4 | . . 2 . 2 Power 1 | . . 1 . . Propulsion 1 | . . 1 . . Utility 1 | . . . . 1 Weapon 1 | . . . . 1 Parts Attached 41 | 7 2 13 8 11 Power 9 | 1 . 3 3 2 Engine 9 | 1 . 3 3 2 Core . | . . . . . Reactor . | . . . . . Propulsion 12 | 2 1 5 2 2 Treads 1 | . . . . 1 Leg . | . . . . . Wheel 11 | 2 1 5 2 1 Hover . | . . . . . Flight . | . . . . . Utility 7 | 2 . 2 . 3 Device 3 | 1 . 1 . 1 Storage 1 | 1 . . . . Processor 1 | . . 1 . . Hackware . | . . . . . Protection 2 | . . . . 2 Artifact . | . . . . . Weapon 13 | 2 1 3 3 4 Energy Gun 11 | 1 1 2 3 4 Energy Cannon . | . . . . . Ballistic Gun 1 | 1 . . . . Ballistic Cannon . | . . . . . Launcher 1 | . . 1 . . Special Weapon . | . . . . . Impact Weapon . | . . . . . Slashing Weapon . | . . . . . Piercing Weapon . | . . . . . Special Melee Weapon . | . . . . . Unidentified Prototypes . | . . . . . Parts Lost 16 | . 1 7 4 4 Power 2 | . . 1 1 . Propulsion 7 | . . 2 2 3 Utility 3 | . . 2 . 1 Weapon 4 | . 1 2 1 . Highest Loss Streak 3 | . 1 2 2 3 To Critical Strikes . | . . . . . Average Slot Usage (%) 96 | . 99 89 99 95 Engine 18 | . 14 19 22 18 Wheel 28 | . 28 32 32 19 Device 5 | . 14 5 . 1 Storage 11 | . 14 11 11 9 Processor 4 | . . . 11 9 Protection 1 | . . . . 7 Energy Gun 18 | . 13 14 22 27 Ballistic Gun 5 | . 14 4 . . Naked Turns . | . . . . . Heaviest Build 38 | 14 15 20 19 38 Greatest Support 36 | 26 26 36 30 30 Greatest Overweight (x) 3 | . . . . 3 Average Overweight (x) . | . . . . . Largest Inventory Capacity 8 | 8 8 8 8 8 Average Capacity 7 | 7 8 8 8 8 Most Carried 8 | 4 8 8 8 8 Average Carried 6 | 2 6 6 7 7 Final Capacity 8 | 8 8 8 8 8 Final Carried 8 | 4 8 8 8 8 Class Distribution -------------------- 45% | Scavenger-Mutant 38% | Mutant 15% | Scavenger-Tank Dominant Class ---------------- Mutant | -10/Materials Scavenger-Mutant | -9/Materials Scavenger-Mutant | -9/Storage Scavenger-Tank | -8/Materials Resources | -11 -10 -9 -9 -8 ----------- Run | Scr Mat Mat Sto Mat Matter Collected 691 | 285 33 134 75 164 Remotely . | . . . . . Salvage Created 1442 | 166 201 433 296 346 Parts 96 | 13 15 31 22 15 Haulers Intercepted . | . . . . . Recyclers Shooed . | . . . . . Parts Field Recycled . | . . . . . Retrieved Matter . | . . . . . Parts Self-Destructed . | . . . . . Prevented . | . . . . . Kills | -11 -10 -9 -9 -8 ------- Run | Scr Mat Mat Sto Mat Combat Hostiles Destroyed 27 | . 4 10 7 6 Guns 24 | . 4 7 7 6 AOE 3 | . . 3 . . Classes Destroyed 9 | 2 2 5 . . Worker 2 | . . 1 . 1 Builder 1 | . . 1 . . Tunneler 6 | 5 1 . . . Recycler 2 | 1 . 1 . . Operator 1 | . 1 . . . Watcher 1 | . . 1 . . Swarmer 3 | . . 3 . . Grunt 17 | . 4 6 4 3 Sentry 7 | . . 1 3 3 Best Kill Streak 9 | 5 3 9 3 6 Combat Bots Only 5 | . 2 4 3 5 Max Kills in Single Turn 4 | 1 1 4 1 2 Gunslinging 1 | . . . . 1 Exploded 2 | . . 2 . . Melee . | . . . . . Uniques/NPCs Destroyed . | . . . . . Combat | -11 -10 -9 -9 -8 -------- Run | Scr Mat Mat Sto Mat Damage Taken 1583 | . 231 505 296 551 Core 305 | . 15 111 12 167 Absorbed by Shields . | . . . . . Core Remaining (%) 87 | 100 94 . 69 . Volleys Fired 112 | 15 20 40 23 14 Largest 3 | 2 2 2 2 3 Hottest 190 | 70 85 105 80 190 Shots Fired 219 | 30 38 64 45 42 Gun 217 | 30 38 62 45 42 Cannon . | . . . . . Launcher 2 | . . 2 . . Special . | . . . . . Kinetic 49 | 15 20 14 . . Thermal 168 | 15 18 48 45 42 Explosive 2 | . . 2 . . Electromagnetic . | . . . . . Robot Hit Streak 11 | 10 9 11 11 11 Robot Miss Streak 4 | 2 4 3 1 2 Penetration Max . | . . . . . Secondary Targets 5 | . . 2 1 2 Max Gunslinging Chain 1 | . . 1 1 1 Shots Hit Robots 152 | 20 24 40 37 31 Core Hits 70 | 8 9 22 15 16 Critical Kills . | . . . . . Critical Parts Destroyed 1 | . . 1 . . Critical Strikes 5 | 3 . 2 . . Burn 4 | 3 . 1 . . Destroy 1 | . . 1 . . Melee Attacks . | . . . . . Impact . | . . . . . Slashing . | . . . . . Piercing . | . . . . . Sneak Attacks . | . . . . . Combat Hostiles . | . . . . . Follow-up Attacks . | . . . . . Damage Inflicted 1993 | 211 279 715 401 387 Guns 1782 | 211 279 504 401 387 Cannons . | . . . . . Explosions 211 | . . 211 . . Melee . | . . . . . Ramming . | . . . . . Kinetic 222 | 72 82 68 . . Thermal 1560 | 139 197 436 401 387 Explosive 211 | . . 211 . . Electromagnetic . | . . . . . Impact . | . . . . . Slashing . | . . . . . Piercing . | . . . . . Highest Corruption . | . . . . . Average Corruption . | . . . . . Corruption Purged . | . . . . . Corruption Blocked . | . . . . . Overload Shots . | . . . . . Overflow Damage 21 | . . 21 . . Projectiles . | . . . . . Explosions 21 | . . 21 . . Melee . | . . . . . Knockbacks . | . . . . . Impact . | . . . . . Kinetic . | . . . . . Secondary . | . . . . . Self-Inflicted Damage 27 | . . 27 . . Shots 1 | . . 1 . . Rammed . | . . . . . Targets Rammed . | . . . . . Kicked . | . . . . . Crushed . | . . . . . Highest Temperature 627 | 80 190 500 194 627 Average Temperature 153 | 32 81 195 72 323 Received Heat Transfer 681 | . 132 213 129 207 Effects 33 | . . 7 . 26 Shutdowns 11 | . . 3 . 8 Energy Bleed 3 | . . 1 . 2 Interference 9 | . . 3 . 6 Matter Decay 1 | . . . . 1 Short Circuit 1 | . . . . 1 Damage (minor) 1 | . . . . 1 Damage (major) 6 | . . . . 6 Damage (core) 1 | . . . . 1 Siege Activations . | . . . . . Robots Corrupted . | . . . . . Combat Hostiles . | . . . . . Parts Fried . | . . . . . Impact Corruptions . | . . . . . Robots Melted . | . . . . . Combat Hostiles . | . . . . . Parts Melted 6 | 1 . 1 1 3 Heat Transferred 4106 | 629 518 1163 925 871 Parts Sabotaged . | . . . . . Parts Stolen . | . . . . . Parts Stripped . | . . . . . Power Chain Reactions . | . . . . . Missiles Intercepted . | . . . . . Alert | -11 -10 -9 -9 -8 ------- Run | Scr Mat Mat Sto Mat Peak Influence 385 | 30 184 385 347 346 Initial 162 | . 19 77 162 146 Average 181 | 12 106 223 268 256 Maximum Alert Level 1 | . . 1 1 1 Low Security (%) 58 | 100 100 57 15 27 Level 1 41 | . . 42 84 72 Level 2 . | . . . . . Level 3 . | . . . . . Level 4 . | . . . . . Level 5 . | . . . . . High Security . | . . . . . Max Security . | . . . . . Squads Dispatched 3 | . . 1 2 . Investigation . | . . . . . Extermination . | . . . . . Reinforcement 3 | . . 1 2 . Assault . | . . . . . Garrison . | . . . . . Intercept . | . . . . . Searches Triggered . | . . . . . Construction Impeded . | . . . . . Haulers Reinforced . | . . . . . Active Scanning Responses . | . . . . . Cargo Convoy Interrupts . | . . . . . Stealth | -11 -10 -9 -9 -8 --------- Run | Scr Mat Mat Sto Mat Distress Signals 5 | . 1 2 1 1 Communications Jammed . | . . . . . Distress Signals . | . . . . . Times Spotted 47 | . 9 17 12 9 Peak Tracking Total 7 | . 3 7 4 5 Tactical Retreats 4 | . 1 2 . 1 Traps | -11 -10 -9 -9 -8 ------- Run | Scr Mat Mat Sto Mat Traps Triggered 1 | . . . 1 . Indirectly . | . . . . . Trap Hack Attempts . | . . . . . Triggered . | . . . . . Disarmed . | . . . . . Reprogrammed . | . . . . . Reused . | . . . . . Traps Extracted . | . . . . . Installed . | . . . . . Triggered . | . . . . . Machines | -11 -10 -9 -9 -8 ---------- Run | Scr Mat Mat Sto Mat Machines Disabled 1 | . . 1 . . Max in Single Turn 1 | . . 1 . . Machines Sabotaged . | . . . . . Garrisons Compromised . | . . . . . Overloaded Fab Kills . | . . . . . Hacking | -11 -10 -9 -9 -8 --------- Run | Scr Mat Mat Sto Mat Machines Accessed . | . . . . . Terminals . | . . . . . Fabricators . | . . . . . Repair Stations . | . . . . . Recycling Units . | . . . . . Scanalyzers . | . . . . . Garrison Access . | . . . . . Total Hacks . | . . . . . Successful . | . . . . . Failed . | . . . . . Catastrophic . | . . . . . Database Lockouts . | . . . . . Manual . | . . . . . Terminals . | . . . . . Fabricators . | . . . . . Repair Stations . | . . . . . Recycling Units . | . . . . . Scanalyzers . | . . . . . Garrison Access . | . . . . . Terminal Hacks . | . . . . . Fabricator Hacks . | . . . . . Repair Station Hacks . | . . . . . Recycling Unit Hacks . | . . . . . Scanalyzer . | . . . . . Garrison Access Hacks . | . . . . . Unauthorized Hacks . | . . . . . Terminals . | . . . . . Fabricators . | . . . . . Repair Stations . | . . . . . Recycling Units . | . . . . . Scanalyzers . | . . . . . Garrison Access . | . . . . . Data Cores Recovered 1 | . 1 . . . Used . | . . . . . Hacking Detections . | . . . . . Full Trace Events . | . . . . . Feedback Events . | . . . . . Feedback Blocked . | . . . . . Robot Schematics Acquired . | . . . . . Robots Built . | . . . . . Authchips . | . . . . . Time . | . . . . . Total Robot Build Rating . | . . . . . Part Schematics Acquired . | . . . . . Parts Built . | . . . . . Authchips . | . . . . . Time . | . . . . . Total Part Build Rating . | . . . . . Parts Repaired . | . . . . . Time . | . . . . . Parts Recycled . | . . . . . Recycled Matter . | . . . . . Retrieved Matter . | . . . . . Retrieved Components . | . . . . . Parts Scanalyzed . | . . . . . Part Schematics Acquired . | . . . . . Parts Damaged . | . . . . . Bothacking | -11 -10 -9 -9 -8 ------------ Run | Scr Mat Mat Sto Mat Used RIF Installer . | . . . . . Robots Hacked . | . . . . . Non-combat . | . . . . . Combat . | . . . . . Robot Hacks Applied . | . . . . . Relay Couplers Released . | . . . . . Fabnet Peak Effective % . | . . . . . Robots Rewired . | . . . . . Allies Hacked . | . . . . . Hacks Repelled . | . . . . . Allies | -11 -10 -9 -9 -8 -------- Run | Scr Mat Mat Sto Mat Total Allies . | . . . . . Largest Group . | . . . . . Highest-Rated Group . | . . . . . Highest-Rated Ally . | . . . . . Total Orders . | . . . . . Ally Attacks . | . . . . . Total Damage . | . . . . . Kills . | . . . . . Allies Corrupted . | . . . . . Allies Melted . | . . . . . Intel | -11 -10 -9 -9 -8 ------- Run | Scr Mat Mat Sto Mat Robot Analysis Total . | . . . . . Derelict Logs Recovered . | . . . . . Drone Launches . | . . . . . Drone Recoveries . | . . . . . Exploration | -11 -10 -9 -9 -8 ------------- Run | Scr Mat Mat Sto Mat Turns Passed 1226 | 157 327 247 316 179 Spaces Moved 828 | 114 253 108 260 93 Core 4 | 4 . . . . Treads . | . . . . . Legs . | . . . . . Wheels 824 | 110 253 108 260 93 Hover . | . . . . . Flight . | . . . . . Fastest Speed 50 | 50 90 80 80 80 Average Speed 86 | 88 90 81 80 94 Slowest Speed 125 | 90 90 86 80 125 Overloaded Moves . | . . . . . Propulsion Burnouts . | . . . . . Robots Hopped . | . . . . . Cave-ins Triggered . | . . . . . Exploration Rate (%) 21 | 4 41 12 42 8 Regions Visited 4 Branch Regions 1 Pre-discovered Areas . | . . . . . Known Exits Taken . | . . . . . Unknown Exits Taken 4 | 1 1 1 1 . Scrap Searched . | . . . . . Spaces Dug . | . . . . . Terrain Destroyed 17 | . . 17 . . Melee . | . . . . . Projectile . | . . . . . AOE 17 | . . 17 . . Terrain Rammed . | . . . . . Walls Destroyed . | . . . . . Machines Disabled . | . . . . . Actions | -11 -10 -9 -9 -8 --------- Run | Scr Mat Mat Sto Mat Total 1129 | 139 317 201 322 150 Wait 128 | . 38 38 23 29 Move 824 | 113 252 107 259 93 Hop . | . . . . . Pick Up 14 | 4 4 3 3 . Fast Attach 13 | 7 1 2 . 3 Attach 14 | . . 6 5 3 Detach . | . . . . . Swap 14 | . 1 5 3 5 Drop 5 | . 1 . 1 3 Fire 112 | 15 20 40 23 14 Melee . | . . . . . Ram . | . . . . . Kick . | . . . . . Crush . | . . . . . Escape Stasis 5 | . . . 5 . Rewire . | . . . . . Trap . | . . . . . Miscellaneous . | . . . . . Route ------- -11/Scrapyard -10/Materials (discovered 2 exits: [*Mat] / [*Min]) -9/Materials -9/Storage -8/Materials History --------- Turn | Location | Event 18 | -11/Scrapyard | Discovered new exit (range 15) 158 | -11/Scrapyard | Entered Materials 303 | -10/Materials | Build established: Mutant 420 | -10/Materials | Discovered new exit (range 10) 475 | -10/Materials | Discovered new exit (range 5) 485 | -10/Materials | Entered another Materials area 485 | -9/Materials | Evolved 2 slots: Power x1, Propulsion x1 720 | -9/Materials | Discovered new exit (range 15) 732 | -9/Materials | Entered Storage 777 | -9/Storage | Build established: Scavenger-Mutant 1036 | -9/Storage | Discovered new exit (range 16) 1048 | -9/Storage | Entered Materials 1048 | -8/Materials | Evolved 2 slots: Utility x1, Weapon x1 1153 | -8/Materials | Lost 3 parts (2n1u) 1227 | -8/Materials | Self-destructed Last Messages --------------- 01142_ Acquired 42 matter. 01148_ Acquired Lgt. Treads. 01151_ Acquired 10 matter. 01156_ Dropped Sml. Laser. 01159_ Dropped Broken Heat Sink. 01159_ Acquired Lgt. Armor Plating. 01161_ Acquired 30 matter. 01165_ Dropped Sml. Laser. 01168_ Acquired 10 matter. 01202_ W-25 Informer sends out distress signal. 01202_ Critical hit (Burn: +37). 01202_ Wheel destroyed. 01220_ Y-45 Defender destroyed. 01223_ Power failure, Imp. Deuterium Engine shutdown. 01225_ Overheating: System interference. 01225_ Terrain Scan Processor temporarily disabled. 01225_ Beam Rifle temporarily disabled. 01225_ Hvy. Laser temporarily disabled. 01227_ Overheating: System interference. 01227_ Particle Gun temporarily disabled. Map ----- +----------------------------------------------------+ | ?????????????????????????????????????????????????? | | ?????????????????????????????????????????????????? | | ?????????????????????????????????????????????????? | | ?????????????????????????????????????????????????? | | ?????????????????????????????????????????????????? | | ?????????????????????????????????????????????????? | | ?????????????????????????????????????????????????? | | ?????????????????????????????????????????????????? | | ?????????????????????????????????????????????????? | | ?????????????????????????? ????????????????????? | | ?????????????????????????? #???????????????????? | | ?????????????????????????? #???????????????????? | | ?????????????????????????? #???????????????????? | | ?????????????????????????? #???????????????????? | | ?????????????????????????? #???????????????????? | | ?????????????????????????# ##??????????????????? | | ????????????????????????? ###+???????????????? | | ????????????????????????? ????????????????? | | ????????????????????????? ?????????????????? | | ????????????????????????? ??????????????????? | | ????????????????????????? ???????????????????? | | ?????????????????????????# #???????????????????? | | ?????????????????????????# #???????????????????? | | ?????????????#######?????# #???????????????????? | | ############## #######gg +???????????????????? | | @* #???????????????????? | | #???????????????????? | | ! #???????????????????? | | ############## ###########???????????????????? | | ?????????????###+###?????????????????????????????? | | ?????????????? =??????????????????????????????? | | ????????????""" ????????????????????????????? | | ??????????# "R #??????????????????????????? | | ?????????# """ """ [#??????????????????????????? | | ?????????## """ #??????????????????????????? | | ??????????? """ #??????????????????????????? | | ??????????? #??????????????????????????? | | ??????????#########?###??????????????????????????? | | | | | | | | | | | | | | | | | | | | | | | | | +----------------------------------------------------+ Best States ------------- Heat Dissipation 31 Energy Generation 27 Energy Capacity 480 Matter Stores 300 Matter Capacity 300 Sight Range 16 Terrain Scan Range 16 Terrain Scan Density 85 Armor Coverage 150 Evasion (%) 44 Item Schematics ----------------- None Robot Schematics ------------------ None Fabricated ------------ Nothing Alien Tech Used ----------------- None Achievements -------------- None Challenges ------------ None Game ------ Seed GrenadeTargetClaymores Manual? 0 Play Time 00:14:01 Cumulative 33.2 hours Start 2022.05.29 @ 16:02:59 End 2022.05.29 @ 16:19:34 Sessions 1 Manual Loads 0 Difficulty Rogue Special Mode None Game No. 62 Rogue 47 Adventurer 0 Explorer 15 Win Type - Total 0 Types 0/0/0/0/0/0/0/0/0 Lore% 19 Gallery% 29 Achievement% 22 Wizard Run 0 Options --------- ASCII 0 Keyboard 0 Movement Vi Keybinds 0 Fullscreen 2 Font 24/Terminus Map View 76x50 Tactical HUD 1 Map Filters NONE Filters NONE Steam 1 RUN: 2947dc72-63f6-4ef1-a93b-3e6e60346413